[Event "Late-Titled-Tuesday-Blitz-February-27-2024"]
[Site "Chess.com"]
[Date "2024.02.27"]
[Round "7"]
[White "DonMicheleCorleone"]
[Black "NateSolon"]
[Result "0-1"]
[WhiteElo "2532"]
[BlackElo "2691"]
[TimeControl "180+1"]
[EndTime "15:17:20 PST"]
[Termination "NateSolon won by resignation"]

1. e4 {[%clk 0:02:51.6]} 1... c5 {[%clk 0:02:59.6]} 2. Nc3 {[%clk 0:02:50.2]}
2... Nc6 {[%clk 0:02:59.3]} 3. Nf3 {[%clk 0:02:49.4]} 3... e5 {[%clk 0:02:59.1]}
4. Bc4 {[%clk 0:02:49.2]} 4... Be7 {[%clk 0:02:58.3]} 5. d3 {[%clk 0:02:49.4]}
5... d6 {[%clk 0:02:57.8]} 6. O-O {[%clk 0:02:48.5]} 6... Nf6 {[%clk 0:02:57.6]}
7. Ng5 {[%clk 0:02:48.9]} 7... O-O {[%clk 0:02:57]} 8. f4 {[%clk 0:02:49.5]}
8... Bg4 {[%clk 0:02:56.6]} 9. Qe1 {[%clk 0:02:48.6]} 9... exf4 {[%clk
0:02:55.8]} 10. Bxf4 {[%clk 0:02:48.1]} 10... h6 {[%clk 0:02:55.6]} 11. Nf3
{[%clk 0:02:47.8]} 11... Qd7 {[%clk 0:02:55.7]} 12. Rc1 {[%clk 0:02:44.2]} 12...
Rad8 {[%clk 0:02:47.1]} 13. Nd5 {[%clk 0:02:41.1]} 13... Nxd5 {[%clk 0:02:42.4]}
14. Bxd5 {[%clk 0:02:42]} 14... Be6 {[%clk 0:02:39.5]} 15. Qg3 {[%clk
0:02:39.2]} 15... Kh8 {[%clk 0:02:33.8]} 16. Rce1 {[%clk 0:02:36.1]} 16... Bxd5
{[%clk 0:02:28.7]} 17. exd5 {[%clk 0:02:36]} 17... Nb4 {[%clk 0:02:29.2]} 18.
Bxh6 {[%clk 0:02:14.5]} 18... gxh6 {[%clk 0:02:21.1]} 19. Qf4 {[%clk 0:02:15.1]}
19... Kh7 {[%clk 0:02:14]} 20. Qe4+ {[%clk 0:02:04.2]} 20... Kg7 {[%clk
0:01:53.6]} 21. c3 {[%clk 0:02:03.3]} 21... Nxd5 {[%clk 0:01:40.7]} 22. Qxd5
{[%clk 0:02:03.2]} 22... Bf6 {[%clk 0:01:41.1]} 23. Re4 {[%clk 0:01:51.7]} 23...
Kh8 {[%clk 0:01:32.8]} 24. Qh5 {[%clk 0:01:34.5]} 24... Bg7 {[%clk 0:01:26]} 25.
Nh4 {[%clk 0:01:13.1]} 25... Rde8 {[%clk 0:01:17.3]} 26. Nf5 {[%clk 0:00:46.8]}
26... Rxe4 {[%clk 0:01:10.7]} 27. dxe4 {[%clk 0:00:47.7]} 27... Qe6 {[%clk
0:01:05.2]} 28. Rf4 {[%clk 0:00:46.5]} 28... Rg8 {[%clk 0:00:54.4]} 29. Rg4
{[%clk 0:00:40.2]} 29... Bf8 {[%clk 0:00:51.5]} 30. Rh4 {[%clk 0:00:30.4]} 30...
Rg6 {[%clk 0:00:46.6]} 31. h3 {[%clk 0:00:24.8]} 31... d5 {[%clk 0:00:46.1]} 32.
exd5 {[%clk 0:00:17.7]} 32... Qxd5 {[%clk 0:00:30.4]} 33. Rg4 {[%clk 0:00:15.7]}
33... Qd1+ {[%clk 0:00:25.9]} 34. Kh2 {[%clk 0:00:15.9]} 34... Bd6+ {[%clk
0:00:20.5]} 35. Nxd6 {[%clk 0:00:16.1]} 35... Qxd6+ {[%clk 0:00:21.1]} 36. Kh1
{[%clk 0:00:16.2]} 36... Qd1+ {[%clk 0:00:20.5]} 37. Kh2 {[%clk 0:00:16.5]}
37... Qd6+ {[%clk 0:00:19.4]} 38. Kg1 {[%clk 0:00:06.9]} 38... Kg7 {[%clk
0:00:20.3]} 39. Rxg6+ {[%clk 0:00:06.7]} 39... fxg6 {[%clk 0:00:21.2]} 40. Qf3
{[%clk 0:00:04.5]} 40... Qe7 {[%clk 0:00:18.2]} 41. Qf2 {[%clk 0:00:03.4]} 41...
b6 {[%clk 0:00:17.8]} 42. Kf1 {[%clk 0:00:03.9]} 42... Qe6 {[%clk 0:00:17.9]}
43. Qe2 {[%clk 0:00:04.3]} 43... Qxa2 {[%clk 0:00:12.9]} 44. c4 {[%clk
0:00:04.9]} 44... Qb1+ {[%clk 0:00:11.4]} 45. Kf2 {[%clk 0:00:04]} 45... Qf5+
{[%clk 0:00:11.5]} 46. Kg3 {[%clk 0:00:04.4]} 46... Kf6 {[%clk 0:00:09.8]} 47.
Qe8 {[%clk 0:00:03.9]} 47... Qe5+ {[%clk 0:00:10.2]} 48. Qxe5+ {[%clk
0:00:03.9]} 48... Kxe5 {[%clk 0:00:11.1]} 49. h4 {[%clk 0:00:03.8]} 49... h5
{[%clk 0:00:10]} 50. Kf3 {[%clk 0:00:04.2]} 50... Kf5 {[%clk 0:00:09.8]} 51. b3
{[%clk 0:00:04.3]} 51... a6 {[%clk 0:00:09.1]} 52. g3 {[%clk 0:00:03.8]} 52...
b5 {[%clk 0:00:09.3]} 53. Kf2 {[%clk 0:00:04]} 53... bxc4 {[%clk 0:00:09.1]} 54.
bxc4 {[%clk 0:00:04.4]} 54... a5 {[%clk 0:00:09.5]} 55. Ke3 {[%clk 0:00:04.7]}
55... a4 {[%clk 0:00:10]} 56. Kd3 {[%clk 0:00:05.3]} 56... Kg4 {[%clk
0:00:10.1]} 57. Kc3 {[%clk 0:00:05.8]} 57... Kxg3 {[%clk 0:00:10.7]} 58. Kb2
{[%clk 0:00:06.7]} 58... Kxh4 {[%clk 0:00:11.3]} 0-1

[Event "Late-Titled-Tuesday-Blitz-February-27-2024"]
[Site "Chess.com"]
[Date "2024.02.27"]
[Round "7"]
[White "Grischuk"]
[Black "KaydenTroffChess"]
[Result "1-0"]
[WhiteElo "3045"]
[BlackElo "2814"]
[TimeControl "180+1"]
[EndTime "15:17:27 PST"]
[Termination "Grischuk won by resignation"]

1. d4 {[%clk 0:03:00.9]} 1... Nf6 {[%clk 0:02:57.4]} 2. c4 {[%clk 0:03:01]} 2...
g6 {[%clk 0:02:57.6]} 3. g3 {[%clk 0:03:01.2]} 3... Bg7 {[%clk 0:02:50.1]} 4.
Bg2 {[%clk 0:03:01.3]} 4... O-O {[%clk 0:02:50.8]} 5. Nc3 {[%clk 0:03:02]} 5...
c6 {[%clk 0:02:44.6]} 6. e4 {[%clk 0:03:01.1]} 6... d6 {[%clk 0:02:44.8]} 7. Nf3
{[%clk 0:03:00.2]} 7... Qa5 {[%clk 0:02:44.5]} 8. O-O {[%clk 0:02:23.4]} 8...
Qh5 {[%clk 0:02:43.2]} 9. Qd2 {[%clk 0:02:23.7]} 9... Bh3 {[%clk 0:02:33.6]} 10.
Qg5 {[%clk 0:02:23.4]} 10... Bxg2 {[%clk 0:02:28.9]} 11. Kxg2 {[%clk 0:02:24.3]}
11... Qxg5 {[%clk 0:02:26.5]} 12. Bxg5 {[%clk 0:02:25.2]} 12... Nbd7 {[%clk
0:02:25.3]} 13. h3 {[%clk 0:02:17.4]} 13... h6 {[%clk 0:02:24.9]} 14. Be3 {[%clk
0:02:16.5]} 14... Rfe8 {[%clk 0:02:18.6]} 15. Rfd1 {[%clk 0:02:10.2]} 15... e5
{[%clk 0:02:15]} 16. d5 {[%clk 0:02:06.9]} 16... cxd5 {[%clk 0:02:04.7]} 17.
cxd5 {[%clk 0:02:05]} 17... a6 {[%clk 0:01:56.3]} 18. Nd2 {[%clk 0:01:54.9]}
18... Rac8 {[%clk 0:01:54.4]} 19. a4 {[%clk 0:01:49.3]} 19... Nc5 {[%clk
0:01:49.3]} 20. a5 {[%clk 0:01:43.9]} 20... Nd3 {[%clk 0:01:30.9]} 21. Rdb1
{[%clk 0:01:30.4]} 21... Re7 {[%clk 0:01:15.3]} 22. Ra3 {[%clk 0:01:22.9]} 22...
Nb4 {[%clk 0:01:05.9]} 23. Ra4 {[%clk 0:00:53.7]} 23... Nc2 {[%clk 0:01:03.3]}
24. Bb6 {[%clk 0:00:54]} 24... Nd7 {[%clk 0:01:00.5]} 25. Nc4 {[%clk 0:00:53.2]}
25... Nxb6 {[%clk 0:01:00]} 26. Nxb6 {[%clk 0:00:52]} 26... Rcc7 {[%clk
0:00:52]} 27. Rc4 {[%clk 0:00:39.1]} 27... Bf8 {[%clk 0:00:39]} 28. Rc1 {[%clk
0:00:31.2]} 28... Nd4 {[%clk 0:00:36.7]} 29. Nca4 {[%clk 0:00:31.5]} 29... Nb5
{[%clk 0:00:33.2]} 30. Nc8 {[%clk 0:00:26.5]} 30... Red7 {[%clk 0:00:28.6]} 31.
Nab6 {[%clk 0:00:23.2]} 31... Rxc4 {[%clk 0:00:26.8]} 32. Rxc4 {[%clk
0:00:23.8]} 32... Rc7 {[%clk 0:00:23.9]} 33. Rxc7 {[%clk 0:00:08.8]} 33... Nxc7
{[%clk 0:00:24.8]} 34. f4 {[%clk 0:00:08.5]} 34... exf4 {[%clk 0:00:13.5]} 35.
gxf4 {[%clk 0:00:09.4]} 35... f5 {[%clk 0:00:12.1]} 36. e5 {[%clk 0:00:06.5]}
36... Nb5 {[%clk 0:00:10]} 37. e6 {[%clk 0:00:06.1]} 37... Bg7 {[%clk
0:00:06.8]} 38. Nc4 {[%clk 0:00:05.2]} 38... Kf8 {[%clk 0:00:05.6]} 39. N8xd6
{[%clk 0:00:04.6]} 39... Ke7 {[%clk 0:00:04]} 40. Nxb7 {[%clk 0:00:02.7]} 40...
Bd4 {[%clk 0:00:03.6]} 41. b4 {[%clk 0:00:02]} 41... Nc7 {[%clk 0:00:03.8]} 42.
d6+ {[%clk 0:00:02]} 42... Kxe6 {[%clk 0:00:04.1]} 43. dxc7 {[%clk 0:00:02.4]}
43... Kd7 {[%clk 0:00:05]} 44. Nc5+ {[%clk 0:00:01.7]} 44... Bxc5 {[%clk
0:00:03.7]} 45. bxc5 {[%clk 0:00:02.6]} 45... Kxc7 {[%clk 0:00:04.3]} 46. Ne5
{[%clk 0:00:03.1]} 46... g5 {[%clk 0:00:04.9]} 47. Kg3 {[%clk 0:00:03.5]} 47...
Kb7 {[%clk 0:00:04.9]} 48. fxg5 {[%clk 0:00:03.8]} 48... hxg5 {[%clk 0:00:05.8]}
49. h4 {[%clk 0:00:04.7]} 49... f4+ {[%clk 0:00:05.8]} 50. Kg4 {[%clk
0:00:05.3]} 50... gxh4 {[%clk 0:00:06.7]} 51. Kxh4 {[%clk 0:00:05.7]} 51... Kc7
{[%clk 0:00:06.2]} 52. Kg4 {[%clk 0:00:05.8]} 52... Kd8 {[%clk 0:00:06.9]} 53.
Kf3 {[%clk 0:00:06.7]} 53... Ke7 {[%clk 0:00:07.8]} 54. Kxf4 {[%clk 0:00:07.1]}
54... Ke6 {[%clk 0:00:08.7]} 55. Ke4 {[%clk 0:00:08]} 55... Ke7 {[%clk
0:00:08.9]} 56. Kd5 {[%clk 0:00:08.9]} 56... Kd8 {[%clk 0:00:09.8]} 57. Kc6
{[%clk 0:00:09.3]} 57... Kc8 {[%clk 0:00:10.1]} 58. Kb6 {[%clk 0:00:10.2]} 58...
Kb8 {[%clk 0:00:11]} 59. Kxa6 {[%clk 0:00:10.2]} 59... Ka8 {[%clk 0:00:11.9]}
60. Kb6 {[%clk 0:00:10.6]} 60... Kb8 {[%clk 0:00:12.3]} 61. a6 {[%clk
0:00:10.4]} 61... Ka8 {[%clk 0:00:13.2]} 62. c6 {[%clk 0:00:10.2]} 62... Kb8
{[%clk 0:00:13.7]} 63. Nd3 {[%clk 0:00:08.9]} 63... Kc8 {[%clk 0:00:14.6]} 64.
a7 {[%clk 0:00:07.8]} 1-0

[Event "Late-Titled-Tuesday-Blitz-February-27-2024"]
[Site "Chess.com"]
[Date "2024.02.27"]
[Round "7"]
[White "Supelyel"]
[Black "chessydotcom"]
[Result "0-1"]
[WhiteElo "2413"]
[BlackElo "2301"]
[TimeControl "180+1"]
[EndTime "15:17:30 PST"]
[Termination "chessydotcom won by resignation"]

1. c4 {[%clk 0:03:00.9]} 1... e6 {[%clk 0:02:57.5]} 2. Nc3 {[%clk 0:02:59.1]}
2... d5 {[%clk 0:02:57.8]} 3. cxd5 {[%clk 0:02:57.5]} 3... exd5 {[%clk
0:02:58.7]} 4. d4 {[%clk 0:02:56.9]} 4... c5 {[%clk 0:02:58.7]} 5. Nf3 {[%clk
0:02:56.6]} 5... Nc6 {[%clk 0:02:58.2]} 6. g3 {[%clk 0:02:56.6]} 6... Nf6 {[%clk
0:02:57.4]} 7. Bg2 {[%clk 0:02:56.4]} 7... cxd4 {[%clk 0:02:57.3]} 8. Nxd4
{[%clk 0:02:55.5]} 8... Bc5 {[%clk 0:02:57.7]} 9. Nxc6 {[%clk 0:02:48.9]} 9...
bxc6 {[%clk 0:02:58.6]} 10. O-O {[%clk 0:02:49.1]} 10... O-O {[%clk 0:02:58]}
11. a3 {[%clk 0:02:44.5]} 11... Re8 {[%clk 0:02:57.5]} 12. b4 {[%clk 0:02:43]}
12... Bb6 {[%clk 0:02:56.2]} 13. Na4 {[%clk 0:02:24.2]} 13... Ba6 {[%clk
0:02:46.1]} 14. Re1 {[%clk 0:01:36.4]} 14... Ne4 {[%clk 0:02:18.9]} 15. Nxb6
{[%clk 0:01:19.9]} 15... axb6 {[%clk 0:02:06.2]} 16. Be3 {[%clk 0:01:08.4]}
16... Qc7 {[%clk 0:01:52.4]} 17. Rc1 {[%clk 0:01:03.3]} 17... Qb7 {[%clk
0:01:37.1]} 18. a4 {[%clk 0:00:56.9]} 18... Qe7 {[%clk 0:01:29.1]} 19. Qb3
{[%clk 0:00:53.8]} 19... Bc4 {[%clk 0:01:28]} 20. Qa3 {[%clk 0:00:47.4]} 20...
Bb5 {[%clk 0:01:24.4]} 21. Bxe4 {[%clk 0:00:23.1]} 21... Qxe4 {[%clk 0:01:20.5]}
22. a5 {[%clk 0:00:20]} 22... d4 {[%clk 0:01:15.4]} 23. Bf4 {[%clk 0:00:17.5]}
23... bxa5 {[%clk 0:01:13.3]} 24. bxa5 {[%clk 0:00:17.5]} 24... Bxe2 {[%clk
0:01:09.9]} 25. Qc5 {[%clk 0:00:14]} 25... d3 {[%clk 0:01:05.8]} 26. Qxc6 {[%clk
0:00:12.7]} 26... Qxc6 {[%clk 0:00:54]} 27. Rxc6 {[%clk 0:00:13.6]} 27... Rxa5
{[%clk 0:00:54.1]} 28. Rd6 {[%clk 0:00:12.6]} 28... Rea8 {[%clk 0:00:50.2]} 29.
Kg2 {[%clk 0:00:10.6]} 29... f6 {[%clk 0:00:49.2]} 30. h4 {[%clk 0:00:10.7]}
30... Ra1 {[%clk 0:00:46.8]} 31. Rxa1 {[%clk 0:00:09.8]} 31... Rxa1 {[%clk
0:00:47.7]} 32. Be3 {[%clk 0:00:10.4]} 32... Kf7 {[%clk 0:00:42.2]} 33. g4
{[%clk 0:00:09.8]} 33... Ra3 {[%clk 0:00:36.2]} 34. g5 {[%clk 0:00:09.9]} 34...
fxg5 {[%clk 0:00:34.3]} 35. hxg5 {[%clk 0:00:10.8]} 35... Ra8 {[%clk 0:00:32.7]}
36. Rd4 {[%clk 0:00:10.7]} 36... Ke6 {[%clk 0:00:32.2]} 37. Kg3 {[%clk
0:00:10.3]} 37... Rf8 {[%clk 0:00:29.6]} 38. Re4+ {[%clk 0:00:10.4]} 38... Kd5
{[%clk 0:00:28.3]} 39. Rd4+ {[%clk 0:00:10.8]} 39... Kc6 {[%clk 0:00:28.6]} 40.
Rc4+ {[%clk 0:00:10.7]} 40... Kb5 {[%clk 0:00:29.2]} 41. Rd4 {[%clk 0:00:10.9]}
41... Rf3+ {[%clk 0:00:28.5]} 42. Kg2 {[%clk 0:00:10.9]} 42... Rf5 {[%clk
0:00:27.5]} 43. Kg3 {[%clk 0:00:10.8]} 43... Kc6 {[%clk 0:00:26.1]} 44. Kg2
{[%clk 0:00:10.8]} 44... Rd5 {[%clk 0:00:23.9]} 45. Rxd5 {[%clk 0:00:11]} 45...
Kxd5 {[%clk 0:00:24.8]} 46. Bd2 {[%clk 0:00:11.2]} 46... Kc4 {[%clk 0:00:24.6]}
47. f3 {[%clk 0:00:10.5]} 47... Kb3 {[%clk 0:00:24.7]} 48. Kf2 {[%clk
0:00:10.4]} 48... Kc2 {[%clk 0:00:25.4]} 49. Ke3 {[%clk 0:00:10.9]} 49... Bxf3
{[%clk 0:00:24.7]} 50. Be1 {[%clk 0:00:11.3]} 50... Bh5 {[%clk 0:00:19.8]} 51.
Bd2 {[%clk 0:00:11.4]} 51... Bg6 {[%clk 0:00:20.4]} 52. Be1 {[%clk 0:00:11.3]}
52... h6 {[%clk 0:00:19.3]} 53. gxh6 {[%clk 0:00:11.3]} 53... gxh6 {[%clk
0:00:19.8]} 54. Ba5 {[%clk 0:00:11.4]} 54... h5 {[%clk 0:00:18.9]} 55. Be1
{[%clk 0:00:10.7]} 55... Kd1 {[%clk 0:00:18.6]} 56. Ba5 {[%clk 0:00:10.8]} 56...
Be8 {[%clk 0:00:16.3]} 57. Kf4 {[%clk 0:00:09.5]} 57... Ke2 {[%clk 0:00:12.2]}
0-1

[Event "Late-Titled-Tuesday-Blitz-February-27-2024"]
[Site "Chess.com"]
[Date "2024.02.27"]
[Round "7"]
[White "TomsKantans"]
[Black "stollenmonster"]
[Result "1-0"]
[WhiteElo "2687"]
[BlackElo "2855"]
[TimeControl "180+1"]
[EndTime "15:17:32 PST"]
[Termination "TomsKantans won by resignation"]

1. e4 {[%clk 0:03:00.9]} 1... c5 {[%clk 0:03:00.3]} 2. Nf3 {[%clk 0:03:00.5]}
2... Nf6 {[%clk 0:03:00.8]} 3. e5 {[%clk 0:03:00.3]} 3... Nd5 {[%clk 0:03:01]}
4. Nc3 {[%clk 0:03:00.9]} 4... e6 {[%clk 0:03:01.5]} 5. Nxd5 {[%clk 0:03:00.2]}
5... exd5 {[%clk 0:03:02.4]} 6. d4 {[%clk 0:03:00.4]} 6... Nc6 {[%clk
0:03:03.1]} 7. dxc5 {[%clk 0:02:59.5]} 7... Bxc5 {[%clk 0:03:04]} 8. Qxd5 {[%clk
0:02:58.9]} 8... d6 {[%clk 0:03:04.7]} 9. exd6 {[%clk 0:02:56.9]} 9... Qb6
{[%clk 0:03:05.2]} 10. Qe4+ {[%clk 0:02:57.1]} 10... Be6 {[%clk 0:03:04.6]} 11.
Qh4 {[%clk 0:02:57.2]} 11... f6 {[%clk 0:03:04.7]} 12. Bd3 {[%clk 0:02:28.4]}
12... O-O-O {[%clk 0:03:04.6]} 13. O-O {[%clk 0:02:20.6]} 13... h5 {[%clk
0:03:05.1]} 14. Qa4 {[%clk 0:01:59.8]} 14... Bg4 {[%clk 0:02:51.7]} 15. Nd2
{[%clk 0:01:58.9]} 15... Ne5 {[%clk 0:02:46.1]} 16. Ne4 {[%clk 0:01:35.8]} 16...
Nxd3 {[%clk 0:02:23.5]} 17. cxd3 {[%clk 0:01:31]} 17... Bd4 {[%clk 0:02:23.7]}
18. Bd2 {[%clk 0:01:00.6]} 18... Bd7 {[%clk 0:01:52.8]} 19. Qc4+ {[%clk
0:00:36.1]} 19... Kb8 {[%clk 0:01:49.1]} 20. Rac1 {[%clk 0:00:27.6]} 20... Bc6
{[%clk 0:01:33]} 21. b4 {[%clk 0:00:26.9]} 21... Be5 {[%clk 0:01:21.2]} 22. Be3
{[%clk 0:00:24.2]} 22... Qb5 {[%clk 0:01:17.2]} 23. Qc5 {[%clk 0:00:24.6]} 23...
Qxc5 {[%clk 0:00:53.2]} 24. bxc5 {[%clk 0:00:24.5]} 24... Rhe8 {[%clk
0:00:53.8]} 25. f4 {[%clk 0:00:22.4]} 25... Bb2 {[%clk 0:00:46.7]} 26. Rb1
{[%clk 0:00:22.8]} 26... Bxe4 {[%clk 0:00:45.9]} 27. dxe4 {[%clk 0:00:20.9]}
27... Rxe4 {[%clk 0:00:46.8]} 28. Rxb2 {[%clk 0:00:19.7]} 28... Rxe3 {[%clk
0:00:47.1]} 29. Rfb1 {[%clk 0:00:20.4]} 29... b6 {[%clk 0:00:43.9]} 30. cxb6
{[%clk 0:00:17.9]} 30... a6 {[%clk 0:00:44.1]} 31. Rd2 {[%clk 0:00:15.4]} 31...
Rc3 {[%clk 0:00:39.5]} 32. a4 {[%clk 0:00:12.3]} 32... a5 {[%clk 0:00:29]} 33.
Rd5 {[%clk 0:00:08.6]} 33... Rc6 {[%clk 0:00:27.7]} 34. Rxa5 {[%clk 0:00:06.2]}
34... Rdxd6 {[%clk 0:00:25.3]} 35. Rab5 {[%clk 0:00:04.3]} 35... Rd2 {[%clk
0:00:24.5]} 36. R5b2 {[%clk 0:00:03.4]} 36... Rc1+ {[%clk 0:00:22.4]} 37. Rxc1
{[%clk 0:00:03.5]} 37... Rxb2 {[%clk 0:00:23]} 38. a5 {[%clk 0:00:04.4]} 38...
Rb5 {[%clk 0:00:20.5]} 39. Ra1 {[%clk 0:00:04.8]} 39... Rb2 {[%clk 0:00:16.3]}
40. g3 {[%clk 0:00:04.5]} 40... g5 {[%clk 0:00:15.5]} 41. fxg5 {[%clk
0:00:04.5]} 41... fxg5 {[%clk 0:00:16.4]} 42. h4 {[%clk 0:00:05.3]} 42... g4
{[%clk 0:00:16.3]} 43. Ra3 {[%clk 0:00:05.7]} 43... Ka8 {[%clk 0:00:15.2]} 44.
Kf1 {[%clk 0:00:06.2]} 44... Kb8 {[%clk 0:00:15.6]} 45. Ke1 {[%clk 0:00:06.8]}
45... Ka8 {[%clk 0:00:14.5]} 46. Kd1 {[%clk 0:00:07.4]} 46... Kb8 {[%clk
0:00:14.1]} 47. Kc1 {[%clk 0:00:07.9]} 47... Rb5 {[%clk 0:00:14.2]} 48. Kc2
{[%clk 0:00:08.1]} 48... Kb7 {[%clk 0:00:14.6]} 49. a6+ {[%clk 0:00:06.5]} 49...
Ka8 {[%clk 0:00:15.1]} 50. b7+ {[%clk 0:00:06.4]} 50... Ka7 {[%clk 0:00:15.6]}
51. Kc3 {[%clk 0:00:06.3]} 51... Rb6 {[%clk 0:00:16]} 52. Kc4 {[%clk 0:00:06.3]}
52... Rb1 {[%clk 0:00:15.9]} 53. Kd5 {[%clk 0:00:05.9]} 53... Rb5+ {[%clk
0:00:12.8]} 54. Kc6 {[%clk 0:00:05.9]} 54... Rb1 {[%clk 0:00:13]} 55. Ra5 {[%clk
0:00:05.8]} 55... Rc1+ {[%clk 0:00:12.5]} 56. Kd7 {[%clk 0:00:05.7]} 56... Rd1+
{[%clk 0:00:11.1]} 57. Ke6 {[%clk 0:00:06]} 57... Re1+ {[%clk 0:00:11]} 58. Kf5
{[%clk 0:00:06]} 58... Re3 {[%clk 0:00:11.1]} 59. Rb5 {[%clk 0:00:05.2]} 59...
Re8 {[%clk 0:00:11]} 60. Kg5 {[%clk 0:00:05.3]} 60... Rb8 {[%clk 0:00:11.1]} 61.
Kxh5 {[%clk 0:00:05.2]} 61... Kxa6 {[%clk 0:00:11.4]} 62. Rb4 {[%clk 0:00:05.8]}
62... Ka5 {[%clk 0:00:10.5]} 63. Rb1 {[%clk 0:00:05.5]} 1-0

[Event "Late-Titled-Tuesday-Blitz-February-27-2024"]
[Site "Chess.com"]
[Date "2024.02.27"]
[Round "7"]
[White "martinmena"]
[Black "Bala-Afiada"]
[Result "1-0"]
[WhiteElo "2244"]
[BlackElo "1903"]
[TimeControl "180+1"]
[EndTime "15:17:38 PST"]
[Termination "martinmena won by resignation"]

1. c4 {[%clk 0:03:00.9]} 1... Nf6 {[%clk 0:02:57.1]} 2. g3 {[%clk 0:02:58.1]}
2... c6 {[%clk 0:02:57.4]} 3. Bg2 {[%clk 0:02:57.9]} 3... d5 {[%clk 0:02:58.1]}
4. Nf3 {[%clk 0:02:54]} 4... e6 {[%clk 0:02:58.4]} 5. O-O {[%clk 0:02:53.3]}
5... Be7 {[%clk 0:02:57.8]} 6. d4 {[%clk 0:02:53.3]} 6... O-O {[%clk 0:02:57.9]}
7. Qc2 {[%clk 0:02:47.6]} 7... Nbd7 {[%clk 0:02:55.3]} 8. b3 {[%clk 0:02:46.2]}
8... b6 {[%clk 0:02:52.6]} 9. Rd1 {[%clk 0:02:43.3]} 9... Bb7 {[%clk 0:02:52.3]}
10. Nc3 {[%clk 0:02:39.6]} 10... Rc8 {[%clk 0:02:52]} 11. Bb2 {[%clk 0:02:36.9]}
11... Qc7 {[%clk 0:02:38.2]} 12. e4 {[%clk 0:02:33.4]} 12... dxe4 {[%clk
0:02:36.4]} 13. Nxe4 {[%clk 0:02:33.2]} 13... Nxe4 {[%clk 0:02:34.1]} 14. Qxe4
{[%clk 0:02:32.9]} 14... c5 {[%clk 0:02:33.1]} 15. d5 {[%clk 0:02:32.6]} 15...
Nf6 {[%clk 0:02:28.9]} 16. Qe5 {[%clk 0:01:08.2]} 16... exd5 {[%clk 0:02:13.4]}
17. cxd5 {[%clk 0:01:02]} 17... Qxe5 {[%clk 0:02:03.8]} 18. Nxe5 {[%clk
0:01:00.9]} 18... Bd6 {[%clk 0:01:45]} 19. Nc4 {[%clk 0:00:57.3]} 19... Rfd8
{[%clk 0:01:39.3]} 20. Nxd6 {[%clk 0:00:42.9]} 20... Rxd6 {[%clk 0:01:39]} 21.
Be5 {[%clk 0:00:43.4]} 21... Rdd8 {[%clk 0:01:31.3]} 22. Bxf6 {[%clk 0:00:28.7]}
22... gxf6 {[%clk 0:01:31.3]} 23. Rd2 {[%clk 0:00:23.5]} 23... Rd6 {[%clk
0:01:30.8]} 24. Rad1 {[%clk 0:00:23.3]} 24... Rcd8 {[%clk 0:01:27.8]} 25. f4
{[%clk 0:00:23.2]} 25... Kg7 {[%clk 0:01:28.2]} 26. Kf2 {[%clk 0:00:20.3]} 26...
h6 {[%clk 0:01:26.7]} 27. Be4 {[%clk 0:00:19.6]} 27... Ba6 {[%clk 0:01:20.6]}
28. Ke3 {[%clk 0:00:10.9]} 28... Bc8 {[%clk 0:01:10.4]} 29. f5 {[%clk
0:00:10.6]} 29... Re8 {[%clk 0:01:08.2]} 30. Kf4 {[%clk 0:00:11]} 30... Ba6
{[%clk 0:01:02.4]} 31. g4 {[%clk 0:00:11]} 31... Re5 {[%clk 0:00:55.1]} 32. Bf3
{[%clk 0:00:10.3]} 32... Bb7 {[%clk 0:00:48.4]} 33. a4 {[%clk 0:00:09.8]} 33...
a5 {[%clk 0:00:47.2]} 34. h4 {[%clk 0:00:08.4]} 34... Ba6 {[%clk 0:00:46.9]} 35.
Kg3 {[%clk 0:00:07.8]} 35... Re3 {[%clk 0:00:45.1]} 36. Kf2 {[%clk 0:00:07.2]}
36... Rxb3 {[%clk 0:00:39.7]} 37. Re1 {[%clk 0:00:07]} 37... Bc4 {[%clk
0:00:31.5]} 38. Re7 {[%clk 0:00:06.1]} 38... Rd3 {[%clk 0:00:28.5]} 39. Rxd3
{[%clk 0:00:05.7]} 39... Bxd3 {[%clk 0:00:27.5]} 40. Rc7 {[%clk 0:00:05.6]}
40... c4 {[%clk 0:00:11.2]} 41. Ke3 {[%clk 0:00:05.3]} 41... Bf1 {[%clk
0:00:05.6]} 42. Rc6 {[%clk 0:00:05.6]} 42... Rd7 {[%clk 0:00:05.4]} 43. Rxb6
{[%clk 0:00:05.3]} 43... c3 {[%clk 0:00:06]} 44. Rc6 {[%clk 0:00:05.3]} 44... c2
{[%clk 0:00:03.5]} 45. Rxc2 {[%clk 0:00:05.7]} 45... Ba6 {[%clk 0:00:03.8]} 46.
Rc6 {[%clk 0:00:05.7]} 46... Bb7 {[%clk 0:00:03.7]} 47. Rc5 {[%clk 0:00:06.1]}
47... Rd6 {[%clk 0:00:03.5]} 48. Rxa5 {[%clk 0:00:06.5]} 48... Bc8 {[%clk
0:00:02.5]} 49. Rc5 {[%clk 0:00:06.6]} 49... Bd7 {[%clk 0:00:02.6]} 50. a5
{[%clk 0:00:06.8]} 50... Ra6 {[%clk 0:00:02.9]} 51. Kd4 {[%clk 0:00:07.1]} 51...
Ba4 {[%clk 0:00:01.1]} 52. Kc4 {[%clk 0:00:06.9]} 52... Bc2 {[%clk 0:00:01.6]}
53. Kb4 {[%clk 0:00:06.9]} 53... Bd3 {[%clk 0:00:01.2]} 54. Rc6 {[%clk 0:00:04]}
54... Ra7 {[%clk 0:00:01.7]} 55. d6 {[%clk 0:00:04.1]} 55... Rd7 {[%clk
0:00:01.6]} 56. Rb6 {[%clk 0:00:04.3]} 56... Be2 {[%clk 0:00:01.4]} 57. Bxe2
{[%clk 0:00:03.5]} 57... Rd8 {[%clk 0:00:02.1]} 58. a6 {[%clk 0:00:04]} 1-0